[Event "37th Belgrade Trophy 2024"]
[Site "Belgrade"]
[Date "2024.11.23"]
[Round "1"]
[White "Popovic, Dragan B"]
[Black "Andrijevic, Dimitrije"]
[Result "1-0"]
[ECO "C70"]
[WhiteElo "2185"]
[BlackElo "1819"]
[Annotator "RC"]
[PlyCount "79"]
[EventDate "2024.11.23"]
[EventCountry "SRB"]
[SourceTitle "playchess.com"]
[Source "ChessBase"]
[SourceQuality "1"]
[TimeControl "40/5400+30:900+30"]

1. e4 e5 2. Nf3 Nc6 3. Bb5 a6 4. Ba4 Bc5 5. c3 Nge7 6. d4 exd4 7. cxd4 Bb4+ 8. Nc3 d5 9. exd5 Nxd5 10. O-O O-O 11. Bg5 Nxc3 12. bxc3 Be7 13. Qd2 f6 14. Bf4 Kh8 15. d5 Na7 16. h3 Bc5 17. Bc2 Nb5 18. Rfe1 Nd6 19. Nd4 Bxd4 20. Qxd4 Bd7 21. c4 b6 22. c5 bxc5 23. Qxc5 Be8 24. Rac1 Bf7 25. Bb3 Rc8 26. Qa5 g5 27. Bd2 Qd7 28. Bc3 Qf5 29. Re3 Be8 30. Rf3 Qg6 31. Qxa6 Bb5 32. Qa5 Bd3 33. Bb2 Rf7 34. Qc3 Bf5 35. g4 Be4 36. Rxf6 Rxf6 37. Qxf6+ Kg8 38. Qe7 Re8 39. Qd7 h5 40. Rxc7 1-0

[Event "37th Belgrade Trophy 2024"]
[Site "Belgrade"]
[Date "2024.11.23"]
[Round "1"]
[White "Marjanovic, Dragan"]
[Black "Petrovic, Aleksa"]
[Result "0-1"]
[ECO "E62"]
[WhiteElo "1842"]
[BlackElo "2262"]
[Annotator "RC"]
[PlyCount "54"]
[EventDate "2024.11.23"]
[EventCountry "SRB"]
[SourceTitle "playchess.com"]
[Source "ChessBase"]
[SourceQuality "1"]
[TimeControl "40/5400+30:900+30"]

1. d4 Nf6 2. Nf3 d6 3. c4 g6 4. Nc3 Bf5 5. g3 Bg7 6. Bg2 O-O 7. O-O c6 8. Re1 Ne4 9. Nxe4 Bxe4 10. Nh4 Bxg2 11. Nxg2 Qb6 12. d5 cxd5 13. cxd5 Na6 14. Rb1 Rfc8 15. a3 Nc5 16. Be3 Qb3 17. Bxc5 Qxd1 18. Rexd1 Rxc5 19. Ne1 Rac8 20. a4 Bf6 21. Kf1 Kg7 22. e3 b5 23. b4 R5c7 24. a5 Rc3 25. Rd3 Rc1 26. Rxc1 Rxc1 27. Ke2 Bc3 0-1

[Event "37th Belgrade Trophy 2024"]
[Site "Belgrade"]
[Date "2024.11.23"]
[Round "1.1"]
[White "Smiljkovic, Milan"]
[Black "Shchekachev, Andrei"]
[Result "0-1"]
[ECO "B40"]
[WhiteElo "1888"]
[BlackElo "2448"]
[Annotator "TA"]
[PlyCount "64"]
[EventDate "2024.11.23"]
[EventCountry "SRB"]
[SourceTitle "playchess.com"]
[Source "ChessBase"]
[SourceQuality "1"]
[TimeControl "40/5400+30:900+30"]

{[%evp 14,64,43,15,30,10,14,13,11,10,15,0,0,0,0,-1,6,-45,-39,-46,-32,-35,-30,-50,-39,-47,-64,-237,-219,-235,-226,-233,-235,-243,-135,-115,-111,-151,-154,-205,-211,-214,-208,-242,-203,-202,-209,-1008,-981,-29977,-29977,-29978,-29979]} 1. e4 {[%emt 0:00:08]} c5 {[%emt 0:00:21]} 2. c4 {[%emt 0:00:13]} Nc6 {[%emt 0:04:44]} 3. Nf3 {[%emt 0:00:43]} e6 {[%emt 0:01:35]} 4. Nc3 {[%emt 0:00:25]} Nge7 {[%emt 0:02:58]} 5. d4 {[%emt 0:17:25]} cxd4 {[%emt 0:00:30]} 6. Nxd4 {[%emt 0:00:09]} Nxd4 {[%emt 0:00:08]} 7. Qxd4 {[%emt 0:00:09]} Nc6 {[%emt 0:00:08]} 8. Qd1 {[%emt 0:02:41]} Bc5 {[%emt 0:02:55]} 9. Be2 {[%emt 0:00:29]} O-O {[%emt 0:03:57]} 10. O-O {[%emt 0:00:59]} d6 {[%emt 0:02:23] The position is equal.} 11. a3 {[%emt 0:02:28]} a6 {[%emt 0:07:45]} 12. Bf4 {[%emt 0:04:25]} e5 {[%emt 0:03:50]} 13. Be3 {[%emt 0:05:21]} Be6 {[%emt 0:06:11]} 14. Nd5 {[%emt 0:06:15]} Bd4 {[%emt 0:10:55]} 15. Bxd4 {[%emt 0:03:05]} (15. Qb3 $11) 15... Nxd4 $15 {[%emt 0:00:13]} 16. Ne3 {[%emt 0:05:30]} Rc8 {[%emt 0:05:38]} 17. b3 {[%emt 0:03:10]} b5 {[%emt 0:05:36]} 18. Bd3 {[%emt 0:01:42]} g6 {[%emt 0:04:31]} 19. Rb1 {[%emt 0:02:09]} Qa5 {[%emt 0:01:15]} 20. Nc2 $2 {[%emt 0:11:27] [#]} ({White should try} 20. a4 $15) 20... Nxb3 $1 $19 {[%emt 0:09:25][%mdl 512]} 21. Rxb3 {[%emt 0:00:11]} bxc4 {[%emt 0:00:05]} (21... Bxc4 $2 {is the wrong capture.} 22. Bxc4 bxc4 23. Rb4 $18) 22. Rb4 {[%emt 0:00:18]} cxd3 {[%emt 0:00:07]} 23. Qxd3 {[%emt 0:00:12]} Qc5 {[%emt 0:02:39]} (23... d5 $19 {Strongly threatening ...dxe4.} 24. Qd2 d4) 24. Ne3 $17 {[%emt 0:00:24]} a5 $36 {[%emt 0:01:14][%mdl 2048] Keeping White busy.} 25. Rb5 {[%emt 0:00:47]} Qd4 {[%emt 0:00:09]} 26. Qxd4 {[%emt 0:05:32]} (26. Qd1 $17 {was called for.}) 26... exd4 $19 {[%emt 0:00:09]} 27. Nd5 {[%emt 0:00:06]} Rc5 {[%emt 0:00:48]} 28. Rfb1 {[%emt 0:05:18]} Bxd5 {[%emt 0:06:10]} 29. exd5 {[%emt 0:00:38]} d3 {[%emt 0:00:52] White must now prevent ...Rxb5.} 30. R5b3 {[%emt 0:03:02]} (30. Kf1) 30... d2 {[%emt 0:01:52] ( -> ...Rc1+)} 31. Rd1 {[%emt 0:03:09]} Rc1 {[%emt 0:00:19][%cal Rc1d1]} 32. Rb1 {[%emt 0:00:12]} Rxb1 {[%emt 0:00:23] Weighted Error Value: White=0.69/Black=0.08 (flawless) .  Loses game:     	White=1     	---        Mistake:       	White=3     	Black=1      Inaccurate:     	White=2     	---        OK:         	White=6     	Black=9      Best:        	White=1     	Black=3      Brilliant:      	---       	Black=1} 0-1

[Event "37th Belgrade Trophy 2024"]
[Site "Belgrade"]
[Date "2024.11.23"]
[Round "1.2"]
[White "Bryakin, Mikhail"]
[Black "Jelic, Milutin"]
[Result "1-0"]
[ECO "A70"]
[WhiteElo "2435"]
[BlackElo "1874"]
[Annotator "TA"]
[PlyCount "49"]
[EventDate "2024.11.23"]
[EventCountry "SRB"]
[SourceTitle "playchess.com"]
[Source "ChessBase"]
[SourceQuality "1"]
[TimeControl "40/5400+30:900+30"]

{[%evp 21,49,36,77,54,89,86,138,73,134,102,131,26,55,35,233,237,606,583,565,576,1300,794,1060,1056,1572,1550,1471,1515,29996,751]} 1. d4 {[%emt 0:00:04]} Nf6 {[%emt 0:00:26]} 2. c4 {[%emt 0:00:07]} e6 {[%emt 0:00:20]} 3. Nf3 {[%emt 0:00:19]} c5 {[%emt 0:00:57]} 4. d5 {[%emt 0:00:05]} exd5 {[%emt 0:00:08]} 5. cxd5 {[%emt 0:00:04]} d6 {[%emt 0:01:24]} 6. Nc3 {[%emt 0:00:05]} g6 {[%emt 0:00:20]} 7. h3 {[%emt 0:00:05]} Bg7 {[%emt 0:01:02]} 8. e4 {[%emt 0:00:06]} O-O {[%emt 0:00:53]} 9. Bd3 {[%emt 0:00:04]} Nbd7 {[%emt 0:01:26]} 10. O-O {[%emt 0:00:08]} a6 {[%emt 0:01:29]} 11. a4 {[%emt 0:00:05]} Qc7 {[%emt 0:00:44]} 12. Bf4 {[%emt 0:00:20]} c4 {[%emt 0:09:21]} 13. Bc2 {[%emt 0:00:56]} h6 {[%emt 0:10:02]} (13... Rb8 $142) 14. Bh2 {[%emt 0:00:58] White is more active.} (14. Qd2 $142) 14... Nh7 {[%emt 0:10:01]} (14... b6 $142) 15. Re1 {[%emt 0:00:52]} Re8 {[%emt 0:01:54] [#]} 16. e5 {[%emt 0:01:16]} dxe5 {[%emt 0:04:00]} 17. d6 {[%emt 0:00:17]} Qd8 {[%emt 0:11:55] This costs Black the game.} (17... Qc5 $14) 18. Nd5 $18 {[%emt 0:00:29]} Rf8 $2 {[%emt 0:00:55]} (18... Nhf8 19. Nc7 Rb8 20. Nxe8 Qxe8 21. Nxe5 Nxe5 22. Bxe5 (22. f4 Be6 $18) 22... Bxe5) 19. Ne7+ {[%emt 0:00:41]} Kh8 {[%emt 0:00:21] [#]} 20. Bxg6 $1 {[%emt 0:00:28][%mdl 512]} f6 {[%emt 0:10:02]} (20... Nhf6 21. Bc2) 21. Qc2 {[%emt 0:01:00]} Ng5 {[%emt 0:01:01]} 22. Nh4 {[%emt 0:00:09][%cal Og6f5] Threatens to win with Bf5!} Nc5 {[%emt 0:02:18]} 23. Bf5 {[%emt 0:02:28]} Bxf5 {[%emt 0:08:00]} 24. Qxf5 {[%emt 0:00:03] White threatens Nhg6+ and mate.} Qxd6 {[%emt 0:04:14]} 25. Nhg6+ {[%emt 0:00:04] Weighted Error Value: White=0.32/Black=1.61.  Loses game:     	---       	Black=1      Mistake:       	White=2     	Black=3      Inaccurate:     	White=1     	Black=4      OK:         	White=2     	---        Best:        	White=1     	Black=1} 1-0

[Event "37th Belgrade Trophy 2024"]
[Site "Belgrade"]
[Date "2024.11.23"]
[Round "1.3"]
[White "Askovic, Jovica"]
[Black "Atalik, Suat"]
[Result "0-1"]
[ECO "C54"]
[WhiteElo "1863"]
[BlackElo "2420"]
[Annotator "TA"]
[PlyCount "92"]
[EventDate "2024.11.23"]
[EventCountry "SRB"]
[SourceTitle "playchess.com"]
[Source "ChessBase"]
[SourceQuality "1"]
[TimeControl "40/5400+30:900+30"]

{[%evp 20,92,0,0,0,0,18,11,12,4,0,-14,0,0,0,0,16,0,0,0,0,0,0,0,0,0,-7,-39,-32,-80,-80,-74,-60,-88,-47,-61,-54,-58,-54,-92,-90,-93,-89,-83,0,-52,-52,-52,-52,-174,-184,-268,-293,-253,-230,-399,-427,-409,-422,-500,-490,-471,-489,-501,-471,-479,-374,-654,-642,-551,-505,-1671,-1619,-29986,-29986]} 1. e4 {[%emt 0:00:01]} e5 {[%emt 0:00:16]} 2. Nf3 {[%emt 0:00:14]} Nc6 {[%emt 0:00:28]} 3. Bc4 {[%emt 0:00:20]} Bc5 {[%emt 0:00:30]} 4. c3 {[%emt 0:00:08]} Nf6 {[%emt 0:00:28]} 5. d4 {[%emt 0:00:33]} exd4 {[%emt 0:00:13]} 6. cxd4 {[%emt 0:01:19]} Bb4+ {[%emt 0:00:18]} 7. Bd2 {[%emt 0:01:05]} Nxe4 {[%emt 0:05:03]} 8. Bxb4 {[%emt 0:02:27]} Nxb4 {[%emt 0:00:11]} 9. Bxf7+ {[%emt 0:01:00]} Kxf7 {[%emt 0:00:08]} 10. Qb3+ {[%emt 0:00:22]} d5 {[%emt 0:00:06]} 11. Qxb4 {[%emt 0:01:51]} Re8 {[%emt 0:03:12] White must now prevent ...c5.} 12. O-O {[%emt 0:01:49]} a5 {[%emt 0:01:32]} 13. Qb3 {[%emt 0:01:29]} a4 {[%emt 0:00:50] The position is equal.} 14. Qb4 {[%emt 0:03:15]} Qd6 {[%emt 0:02:59]} 15. Qxd6 {[%emt 0:01:05]} Nxd6 {[%emt 0:09:36]} 16. Nc3 {[%emt 0:01:11] Against Re2} c6 {[%emt 0:00:08]} 17. Rfe1 {[%emt 0:01:49]} Bf5 {[%emt 0:02:46]} 18. Rxe8 {[%emt 0:01:58]} Kxe8 {[%emt 0:01:31]} 19. Re1+ {[%emt 0:00:45]} Kd8 {[%emt 0:02:32]} 20. Ne5 {[%emt 0:02:34]} a3 {[%emt 0:03:37]} 21. b3 {[%emt 0:02:59]} h5 {[%emt 0:02:34]} 22. f3 {[%emt 0:02:44]} Rc8 {[%emt 0:05:23]} 23. h3 {[%emt 0:16:17]} h4 $36 {[%emt 0:06:36][%mdl 2048] Black has good play.} 24. Rc1 {[%emt 0:06:27]} (24. Ng4 $15 {was preferrable.}) 24... Nb5 $1 $17 {[%emt 0:05:11]} 25. Ne2 {[%emt 0:08:33]} (25. Nxb5 $2 cxb5 26. Ra1 Rc2 $19) 25... Ke7 {[%emt 0:00:27]} 26. Kf2 {[%emt 0:06:56]} Kf6 {[%emt 0:00:57][%cal Ob5d4] Threatens to win with ...Nxd4!} 27. f4 {[%emt 0:01:25]} Re8 {[%emt 0:07:27]} 28. Ke3 {[%emt 0:06:25]} Bg6 {[%emt 0:03:13]} 29. Ng1 {[%emt 0:03:42]} Be4 {[%emt 0:01:41] Black is more active.} 30. Ngf3 {[%emt 0:01:00]} Bxf3 {[%emt 0:00:49]} 31. gxf3 {[%emt 0:00:10][%mdl 4096] Endgame. KRN-KRN} Nd6 {[%emt 0:02:02]} (31... Nc7 $1 $17) 32. Rg1 {[%emt 0:02:15]} (32. Re1 $11) 32... Nf5+ $15 {[%emt 0:00:32]} 33. Kd3 {[%emt 0:01:10]} Ng3 $1 {[%emt 0:01:33]} 34. Kd2 {[%emt 0:02:42] This move loses the game for White.} (34. b4 $15) 34... Kf5 $1 $19 {[%emt 0:00:23]} 35. Ke3 {[%emt 0:01:20] [#]} (35. b4 $142) 35... c5 $1 {[%emt 0:10:22][%mdl 512]} 36. dxc5 {[%emt 0:04:55] [#]} g5 $1 {[%emt 0:00:33]} 37. Kd3 $2 {[%emt 0:01:15]} (37. Re1 Nh5 (37... gxf4+ 38. Kd4 $11) 38. Kd2) 37... Kxf4 {[%emt 0:02:29]} 38. Ng4 {[%emt 0:01:12]} Kxf3 {[%emt 0:01:02]} 39. b4 {[%emt 0:00:22]} Nh5 {[%emt 0:14:22] ...Nf4+ is the strong threat.} 40. Nh2+ {[%emt 0:00:00]} Kf2 {[%emt 0:00:00]} 41. Rxg5 {[%emt 0:04:23]} Nf4+ {[%emt 0:02:04]} 42. Kc2 {[%emt 0:02:47]} d4 {[%emt 0:04:34]} (42... Nxh3 43. Ng4+ Kg3 44. Rg7 $17) 43. Ng4+ $2 {[%emt 0:03:01]} (43. Rg7 d3+ (43... Nxh3 44. Rxb7 Re2+ 45. Kd3 $15) 44. Kc3) 43... Ke2 {[%emt 0:01:05] ( -> ...d3+)} 44. Ne5 {[%emt 0:10:43]} Nxh3 {[%emt 0:09:04]} 45. Rh5 {[%emt 0:05:19] [#]} (45. Rg2+ $142 Kf1 (45... Nf2 46. Nd3 $11) 46. Rg4 Rxe5 47. Rxh4 Re2+ 48. Kb3 Re3+ 49. Kc2 d3+ 50. Kd2) 45... Nf4 $1 {[%emt 0:01:19]} 46. Nc4 {[%emt 0:01:19]} Nxh5 {[%emt 0:00:09] Weighted Error Value: White=0.56/Black=0.07 (flawless) .  Mistake:       	White=6     	Black=1      Inaccurate:     	White=3     	Black=1      OK:         	White=13    	Black=8      Best:        	White=3     	Black=7      Strong:       	---       	Black=5      Brilliant:      	---       	Black=1} 0-1

[Event "37th Belgrade Trophy 2024"]
[Site "Belgrade"]
[Date "2024.11.23"]
[Round "1.4"]
[White "Stanojoski, Zvonko"]
[Black "Yasaswi Krishna Bommi"]
[Result "1-0"]
[ECO "A49"]
[WhiteElo "2401"]
[BlackElo "1861"]
[Annotator "TA"]
[PlyCount "75"]
[EventDate "2024.11.23"]
[EventCountry "SRB"]
[SourceTitle "playchess.com"]
[Source "ChessBase"]
[SourceQuality "1"]
[TimeControl "40/5400+30:900+30"]

{[%evp 13,75,33,46,9,17,9,29,30,43,46,46,46,93,95,89,89,91,43,52,48,54,50,44,51,77,75,93,102,141,146,164,153,154,154,182,161,169,176,186,196,195,185,183,184,320,318,333,334,331,330,543,518,928,940,1012,1006,960,921,1012,996,960,891,1044,1043]} 1. Nf3 {[%emt 0:00:17]} Nf6 {[%emt 0:00:12]} 2. d4 {[%emt 0:00:35]} g6 {[%emt 0:00:06]} 3. g3 {[%emt 0:01:53]} Bg7 {[%emt 0:00:06]} 4. Bg2 {[%emt 0:00:04]} d6 {[%emt 0:00:08]} 5. O-O {[%emt 0:00:34]} O-O {[%emt 0:00:07]} 6. b3 {[%emt 0:00:35]} Nbd7 {[%emt 0:01:41]} 7. Bb2 {[%emt 0:00:08]} c5 {[%emt 0:01:32]} 8. dxc5 {[%emt 0:00:39]} Nxc5 {[%emt 0:01:48]} 9. c4 {[%emt 0:01:40]} Qc7 {[%emt 0:04:34]} 10. Nc3 {[%emt 0:00:58] White has an edge.} a6 {[%emt 0:03:16]} 11. Rc1 {[%emt 0:00:55]} Qd8 {[%emt 0:08:55]} 12. Nd4 {[%emt 0:07:17]} Ne6 {[%emt 0:04:37]} (12... Bd7 $14) 13. Nxe6 $16 {[%emt 0:08:34]} Bxe6 {[%emt 0:04:02]} 14. Bxb7 {[%emt 0:00:58]} Rb8 {[%emt 0:06:38]} 15. Bg2 {[%emt 0:10:11]} (15. Bxa6 $16 Bh3 16. Re1) 15... Bxc4 $14 {[%emt 0:04:05]} 16. Ne4 {[%emt 0:04:19]} Nxe4 {[%emt 0:06:29]} 17. Bxg7 {[%emt 0:00:09]} (17. Bxe4 Bxb3 (17... Bxb2 18. Rxc4 a5 19. h4 $11) 18. axb3 Bxb2 $17) (17. Rxc4 Bxb2 (17... Nxf2 18. Qa1 $15) 18. Bxe4 (18. Rxe4 Bf6 $16) 18... a5 $11) 17... Kxg7 {[%emt 0:01:13]} 18. Rxc4 {[%emt 0:01:17]} Nc5 {[%emt 0:03:15]} 19. b4 $36 {[%emt 0:00:57][%mdl 2048] White is on the roll. White now steadily converts the win.} Ne6 {[%emt 0:03:59]} 20. Qd2 {[%emt 0:02:38]} Qb6 {[%emt 0:04:13]} 21. Rfc1 {[%emt 0:00:29]} Kg8 {[%emt 0:03:41]} 22. Bd5 {[%emt 0:05:43]} Ng7 {[%emt 0:05:55]} 23. a3 {[%emt 0:00:23] White is more active.} e6 {[%emt 0:03:30]} 24. Be4 {[%emt 0:03:13]} d5 {[%emt 0:04:12]} 25. Rc6 {[%emt 0:00:10]} Qb7 {[%emt 0:03:56]} 26. Bd3 {[%emt 0:00:50]} Ra8 {[%emt 0:02:19]} 27. Qc3 {[%emt 0:01:00]} Rfd8 {[%emt 0:05:09] Black is weak on the dark squares} 28. Rc7 {[%emt 0:02:48]} Qb6 {[%emt 0:02:07]} (28... Qb8 $142 29. Qf6 Rf8) 29. Qf6 $18 {[%emt 0:01:53]} Rf8 {[%emt 0:00:48]} 30. R1c6 {[%emt 0:00:19]} Qb8 {[%emt 0:00:32]} 31. Qc3 {[%emt 0:00:36]} (31. Bxa6 $2 Ne8 32. Qb2 Nxc7 $19) 31... Rd8 $2 {[%emt 0:04:38]} (31... e5 32. Qxe5 (32. Rxa6 e4 $16) 32... Ra7) 32. Bxa6 {[%emt 0:00:39][%cal Bd3a6,Ba6b7,Bb7e4][%mdl 32] [#] Rb7 would now be deadly. White is clearly winning.} Nf5 {[%emt 0:02:57]} (32... Rf8 $142 33. b5 Qd8) 33. Rb7 {[%emt 0:01:12]} d4 {[%emt 0:03:04]} 34. Qc5 {[%emt 0:00:27]} Qxb7 {[%emt 0:01:50]} 35. Bxb7 {[%emt 0:00:12]} Rxa3 {[%emt 0:00:36]} 36. Rc8 {[%emt 0:01:16]} Rxc8 {[%emt 0:00:09]} 37. Qxc8+ {[%emt 0:00:06]} Kg7 {[%emt 0:00:08]} 38. Be4 {[%emt 0:00:29] Weighted Error Value: White=0.04 (flawless) /Black=0.34.  Mistake:       	White=1     	Black=4      Inaccurate:     	---       	Black=2      OK:         	White=20    	Black=3      Best:        	White=3     	Black=1} 1-0

[Event "37th Belgrade Trophy 2024"]
[Site "Belgrade"]
[Date "2024.11.23"]
[Round "1.5"]
[White "Bozic, Andrej"]
[Black "Sutormin, Danila"]
[Result "0-1"]
[ECO "B92"]
[WhiteElo "1859"]
[BlackElo "2394"]
[Annotator "TA"]
[PlyCount "92"]
[EventDate "2024.11.23"]
[EventCountry "SRB"]
[SourceTitle "playchess.com"]
[Source "ChessBase"]
[SourceQuality "1"]
[TimeControl "40/5400+30:900+30"]

{[%evp 21,92,-23,-9,-15,-29,-61,-51,-85,-88,-89,-36,-110,0,-10,17,-106,-108,-99,-126,-118,-81,-123,-112,-130,-129,-137,-146,-151,-146,-258,-262,-245,-249,-256,-221,-286,-286,-320,-316,-313,-306,-306,-301,-302,-315,-337,-301,-283,-288,-345,-333,-351,-326,-332,-328,-341,-299,-347,-367,-324,-246,-392,-374,-367,-366,-358,-277,-378,-377,-1329,-1282,-5365,-5365]} 1. e4 {[%emt 0:00:05]} c5 {[%emt 0:01:40]} 2. Nf3 {[%emt 0:00:06]} a6 {[%emt 0:00:26]} 3. d4 {[%emt 0:03:29]} cxd4 {[%emt 0:00:07]} 4. Nxd4 {[%emt 0:00:04]} Nf6 {[%emt 0:00:08]} 5. Nc3 {[%emt 0:00:17]} e5 {[%emt 0:00:16]} 6. Nb3 {[%emt 0:01:43]} d6 {[%emt 0:11:46]} 7. f3 {[%emt 0:06:26]} Be6 {[%emt 0:00:25]} 8. Be3 {[%emt 0:00:30]} Nbd7 {[%emt 0:02:18][%cal Bb8d7,Bd7b6,Bb6c4][%mdl 32]} 9. Be2 {[%emt 0:04:37]} Be7 {[%emt 0:01:27]} 10. Qd2 {[%emt 0:03:43]} O-O {[%emt 0:00:21]} 11. O-O {[%emt 0:00:19]} b5 {[%emt 0:12:42]} 12. Bf2 {[%emt 0:07:33]} Nb6 {[%emt 0:08:32]} 13. Bd3 {[%emt 0:17:41]} Qc7 {[%emt 0:05:18]} 14. Qe2 {[%emt 0:03:37]} Nc4 {[%emt 0:09:46]} 15. Rab1 {[%emt 0:04:32]} Rfc8 {[%emt 0:05:46]} (15... Nxb2 $17 16. Nxb5 axb5 17. Rxb2 b4) 16. Rfe1 {[%emt 0:06:28]} (16. Nd2 $15) 16... b4 {[%emt 0:09:02]} (16... Nxb2 $1 $17 17. Nxb5 axb5 18. Rxb2 b4) 17. Nd1 {[%emt 0:04:20][%cal Ob3c5]} (17. Na4 $5) 17... a5 {[%emt 0:01:07]} 18. Ne3 {[%emt 0:10:35]} (18. Nc5 $1 $11 {keeps the balance.}) 18... Nxe3 $17 {[%emt 0:00:31]} 19. Qxe3 {[%emt 0:00:11]} a4 $36 {[%emt 0:01:17][%mdl 2048] Black is in control.} 20. Nc1 {[%emt 0:02:57]} Nd7 {[%emt 0:05:21] Black is more active.} 21. a3 {[%emt 0:04:28]} bxa3 {[%emt 0:01:49]} 22. bxa3 {[%emt 0:02:24]} h6 {[%emt 0:01:54]} 23. Qd2 {[%emt 0:02:52]} Bg5 {[%emt 0:02:15]} 24. Be3 {[%emt 0:00:25]} Qc5 {[%emt 0:03:45]} 25. Bxc5 {[%emt 0:02:51]} (25. Ra1 $17) 25... Bxd2 $19 {[%emt 0:00:09]} 26. Bb4 {[%emt 0:04:13]} Bxe1 {[%emt 0:00:06]} 27. Bxe1 {[%emt 0:00:03]} Nc5 {[%emt 0:00:06]} 28. Bb4 {[%emt 0:01:38]} Nxd3 {[%emt 0:00:39]} 29. cxd3 {[%emt 0:00:09]} Rc2 {[%emt 0:00:30] And now ...Rac8 would win. Inhibits Ne2.} 30. Kf1 {[%emt 0:00:30]} d5 {[%emt 0:00:30]} 31. exd5 {[%emt 0:00:30]} Bxd5 {[%emt 0:00:30]} 32. Ne2 {[%emt 0:00:30]} Rac8 {[%emt 0:00:30]} 33. Rd1 {[%emt 0:00:30]} f6 {[%emt 0:00:30]} 34. Kf2 {[%emt 0:00:30]} Bb3 {[%emt 0:00:30][%cal Oc2e2]} 35. Re1 {[%emt 0:00:30]} Rb2 {[%emt 0:00:30]} 36. Ke3 {[%emt 0:00:30]} Bf7 {[%emt 0:00:30]} 37. h4 {[%emt 0:00:30]} Be8 {[%emt 0:00:30]} 38. g3 {[%emt 0:00:30]} Bb5 {[%emt 0:00:30]} 39. Rd1 {[%emt 0:00:30]} Rcc2 {[%emt 0:00:30][%csl Gb2][%cal Rc2e2]} 40. Re1 {[%emt 0:00:30]} Kf7 {[%emt 0:00:30]} 41. f4 {[%emt 0:15:30]} (41. h5 $142) 41... exf4+ {[%emt 0:15:30]} 42. Nxf4 {[%emt 0:00:30]} Rc8 {[%emt 0:00:30]} 43. Kd4 {[%emt 0:00:30]} Rc7 {[%emt 0:00:30] Prevents Re7+} 44. Re3 {[%emt 0:00:30]} Rb3 {[%emt 0:00:30]} 45. Ke4 $2 {[%emt 0:00:30] [#]} (45. Nd5 Rd7 46. Kc5) 45... Rxb4+ $1 {[%emt 0:00:30][%mdl 512]} 46. axb4 {[%emt 0:00:30]} (46. Kf3 Rb3) 46... Re7+ {[%emt 0:00:30]} 0-1

[Event "37th Belgrade Trophy 2024"]
[Site "Belgrade"]
[Date "2024.11.23"]
[Round "1.6"]
[White "Xie, Jianjun"]
[Black "Li, Zhanjia"]
[Result "1-0"]
[ECO "C42"]
[WhiteElo "2361"]
[BlackElo "1859"]
[Annotator "TA"]
[PlyCount "45"]
[EventDate "2024.11.23"]
[EventCountry "SRB"]
[SourceTitle "playchess.com"]
[Source "ChessBase"]
[SourceQuality "1"]
[TimeControl "40/5400+30:900+30"]

{[%evp 23,45,14,12,12,31,14,30,38,43,24,49,46,65,62,97,95,206,202,308,300,300,297,424,415]} 1. e4 {[%emt 0:00:47]} e5 {[%emt 0:00:33]} 2. Nf3 {[%emt 0:00:07]} Nf6 {[%emt 0:00:07]} 3. Nxe5 {[%emt 0:01:21]} d6 {[%emt 0:00:13]} 4. Nf3 {[%emt 0:00:06]} Nxe4 {[%emt 0:00:05]} 5. d4 {[%emt 0:01:08]} d5 {[%emt 0:00:06]} 6. Bd3 {[%emt 0:00:04]} Nc6 {[%emt 0:01:28][%cal Bb8c6,Bc6b4,Bb4d5][%mdl 32]} 7. O-O {[%emt 0:00:09]} Be7 {[%emt 0:00:05]} 8. c4 {[%emt 0:00:14]} Nf6 {[%emt 0:02:44]} 9. Nc3 {[%emt 0:22:06]} O-O {[%emt 0:02:32]} 10. h3 {[%emt 0:18:22]} Nb4 {[%emt 0:10:40]} 11. Be2 {[%emt 0:00:27]} dxc4 {[%emt 0:02:07]} 12. Bxc4 {[%emt 0:00:36]} c6 {[%emt 0:03:08]} (12... Nbd5 13. Re1 c6 14. Nxd5 Nxd5 15. Bxd5 cxd5 16. Qb3 Be6) 13. Ne5 {[%emt 0:01:39]} (13. Re1 {simplifies} Nbd5 14. Nxd5 Nxd5 15. Bxd5 cxd5 16. Qb3) 13... Bf5 {[%emt 0:06:09]} 14. Qf3 {[%emt 0:01:49]} Bg6 {[%emt 0:03:03]} 15. Be3 {[%emt 0:01:25]} Nbd5 {[%emt 0:03:12]} 16. Rad1 {[%emt 0:04:29]} Qd6 {[%emt 0:05:49]} 17. Bg5 {[%emt 0:04:06]} Rad8 {[%emt 0:10:05]} 18. Rfe1 {[%emt 0:00:09] White is more active.} Nxc3 {[%emt 0:06:32]} 19. bxc3 {[%emt 0:00:43]} Rfe8 {[%emt 0:06:21] [#]} (19... Rde8 $16) 20. h4 $1 $18 {[%emt 0:12:11][%cal Bh3h4,Bh4h5,Bh5g6,Bg6h7][%mdl 32]} Nd5 {[%emt 0:09:13] [#]} (20... b5 $142) 21. h5 $1 {[%emt 0:00:28]} Bxg5 {[%emt 0:03:24]} 22. hxg6 {[%emt 0:00:02]} Rf8 {[%emt 0:01:40]} (22... hxg6 {was worth a try.} 23. Nxf7 Qf6) 23. gxh7+ {[%emt 0:06:15]} ({But not} 23. gxf7+ Kh8 24. Bxd5 (24. g3 b5 $18) 24... cxd5 $18) ({Weaker is} 23. Nxf7 Qxg6 24. Ne5 (24. Bxd5 $2 Rxd5 25. Nxg5 Rxf3 $19) 24... Rxf3 $15) 1-0